﻿Department Family,Entity,Date,Expense Type,Expense Area,Supplier,Amount in Sterling
Companies House,CH,07/07/2021,Adjudicator General           ,Edinburgh                     ,WALKER LOVE                             ,"£2,523.14"
Companies House,CH,09/07/2021,Contract Staff         ,Accounting                    ,Hays Specialist Recruitment Ltd         ,£623.90
Companies House,CH,15/07/2021,Contract Staff         ,ACI - Data Science            ,CONCEPT RESOURCING T/A CONCEPT INFORMATION,"£1,081.89"
Companies House,CH,23/07/2021,Contract Staff         ,ACI - Data Science            ,Hays Specialist Recruitment Ltd         ,"£1,671.05"
Companies House,CH,07/07/2021,Contract Staff         ,ACI - Data Science            ,CONCEPT RESOURCING T/A CONCEPT INFORMATION,"£1,803.15"
Companies House,CH,28/07/2021,Contract Staff         ,ACI - Data Science            ,Hays Specialist Recruitment Ltd         ,"£2,785.08"
Companies House,CH,09/07/2021,Contract Staff         ,Building Services             ,MICHAEL PAGE INTERNATIONAL RECRUITMENT  ,"£1,691.25"
Companies House,CH,07/07/2021,Contract Staff         ,Change & Continuous Improvement,ALEXANDER MANN SOLUTIONS                ,"£4,311.48"
Companies House,CH,15/07/2021,Contract Staff         ,Change & Continuous Improvement,ALEXANDER MANN SOLUTIONS                ,"£4,311.48"
Companies House,CH,21/07/2021,Contract Staff         ,Change & Continuous Improvement,ALEXANDER MANN SOLUTIONS                ,"£4,311.48"
Companies House,CH,23/07/2021,Contract Staff         ,Directorate                   ,Hays Specialist Recruitment Ltd         ,£672.88
Companies House,CH,29/07/2021,Contract Staff         ,Directorate                   ,Hays Specialist Recruitment Ltd         ,£681.55
Companies House,CH,21/07/2021,Contract Staff         ,Directorate                   ,Hays Specialist Recruitment Ltd         ,£693.16
Companies House,CH,09/07/2021,Contract Staff         ,HR Strategy & Policy          ,Hays Specialist Recruitment Ltd         ,"£1,224.30"
Companies House,CH,15/07/2021,Contract Staff         ,HR Strategy & Policy          ,Hays Specialist Recruitment Ltd         ,"£1,224.30"
Companies House,CH,21/07/2021,Contract Staff         ,HR Strategy & Policy          ,Hays Specialist Recruitment Ltd         ,"£1,224.30"
Companies House,CH,23/07/2021,Contract Staff         ,HR Strategy & Policy          ,Hays Specialist Recruitment Ltd         ,"£1,224.30"
Companies House,CH,28/07/2021,Contract Staff         ,Infrastructure                ,ALEXANDER MANN SOLUTIONS                ,"£2,278.99"
Companies House,CH,15/07/2021,Contract Staff         ,Infrastructure                ,ALEXANDER MANN SOLUTIONS                ,"£2,563.87"
Companies House,CH,07/07/2021,Contract Staff         ,Infrastructure                ,ALEXANDER MANN SOLUTIONS                ,"£2,848.74"
Companies House,CH,21/07/2021,Contract Staff         ,Infrastructure                ,ALEXANDER MANN SOLUTIONS                ,"£2,848.74"
Companies House,CH,09/07/2021,Contract Staff         ,Infrastructure                ,Spring Technology Staffing Services Ltd ,"£4,264.50"
Companies House,CH,15/07/2021,Contract Staff         ,Infrastructure                ,Spring Technology Staffing Services Ltd ,"£4,264.50"
Companies House,CH,21/07/2021,Contract Staff         ,Infrastructure                ,Spring Technology Staffing Services Ltd ,"£4,264.50"
Companies House,CH,28/07/2021,Contract Staff         ,Infrastructure                ,Spring Technology Staffing Services Ltd ,"£4,264.50"
Companies House,CH,09/07/2021,Contract Staff         ,Infrastructure Engineering    ,Hays Specialist Recruitment Ltd         ,"£3,250.20"
Companies House,CH,15/07/2021,Contract Staff         ,Infrastructure Engineering    ,Hays Specialist Recruitment Ltd         ,"£3,250.20"
Companies House,CH,21/07/2021,Contract Staff         ,Infrastructure Engineering    ,Hays Specialist Recruitment Ltd         ,"£3,250.20"
Companies House,CH,28/07/2021,Contract Staff         ,Infrastructure Engineering    ,Hays Specialist Recruitment Ltd         ,"£3,250.20"
Companies House,CH,09/07/2021,Contract Staff         ,Infrastructure Engineering    ,Spring Technology Staffing Services Ltd ,"£3,378.00"
Companies House,CH,15/07/2021,Contract Staff         ,Infrastructure Engineering    ,Spring Technology Staffing Services Ltd ,"£3,378.00"
Companies House,CH,21/07/2021,Contract Staff         ,Infrastructure Engineering    ,Spring Technology Staffing Services Ltd ,"£3,378.00"
Companies House,CH,28/07/2021,Contract Staff         ,Infrastructure Engineering    ,Spring Technology Staffing Services Ltd ,"£3,378.00"
Companies House,CH,21/07/2021,Contract Staff         ,Late Filing Penalties Accounting                ,Hays Specialist Recruitment Ltd         ,£639.00
Companies House,CH,23/07/2021,Contract Staff         ,Late Filing Penalties Accounting                ,Hays Specialist Recruitment Ltd         ,£639.00
Companies House,CH,15/07/2021,Contract Staff         ,Late Filing Penalties Accounting                ,Hays Specialist Recruitment Ltd         ,£677.34
Companies House,CH,09/07/2021,Contract Staff         ,Portfolio                     ,Hays Specialist Recruitment Ltd         ,"£1,783.12"
Companies House,CH,15/07/2021,Contract Staff         ,Portfolio                     ,Hays Specialist Recruitment Ltd         ,"£1,968.72"
Companies House,CH,21/07/2021,Contract Staff         ,Portfolio                     ,Hays Specialist Recruitment Ltd         ,"£2,372.06"
Companies House,CH,09/07/2021,Contract Staff         ,Portfolio                     ,Hays Specialist Recruitment Ltd         ,"£2,460.90"
Companies House,CH,09/07/2021,Contract Staff         ,Portfolio                     ,Hays Specialist Recruitment Ltd         ,"£2,965.08"
Companies House,CH,15/07/2021,Contract Staff         ,Portfolio                     ,Hays Specialist Recruitment Ltd         ,"£2,965.08"
Companies House,CH,29/07/2021,Contract Staff         ,Portfolio                     ,Hays Specialist Recruitment Ltd         ,"£2,965.08"
Companies House,CH,07/07/2021,Contract Staff         ,Portfolio                     ,Hays Specialist Recruitment Ltd         ,"£3,301.86"
Companies House,CH,09/07/2021,Contract Staff         ,Procurement                   ,Hays Specialist Recruitment Ltd         ,"£3,156.14"
Companies House,CH,15/07/2021,Contract Staff         ,Procurement                   ,Hays Specialist Recruitment Ltd         ,"£3,156.14"
Companies House,CH,21/07/2021,Contract Staff         ,Procurement                   ,Hays Specialist Recruitment Ltd         ,"£3,187.14"
Companies House,CH,09/07/2021,Contract Staff         ,Procurement                   ,Hays Specialist Recruitment Ltd         ,"£3,541.26"
Companies House,CH,09/07/2021,Contract Staff         ,Procurement                   ,Hays Specialist Recruitment Ltd         ,"£3,541.26"
Companies House,CH,09/07/2021,Contract Staff         ,Procurement                   ,Hays Specialist Recruitment Ltd         ,"£3,541.26"
Companies House,CH,15/07/2021,Contract Staff         ,Procurement                   ,Hays Specialist Recruitment Ltd         ,"£3,541.26"
Companies House,CH,21/07/2021,Contract Staff         ,Procurement                   ,Hays Specialist Recruitment Ltd         ,"£3,541.26"
Companies House,CH,21/07/2021,Contract Staff         ,Procurement                   ,Hays Specialist Recruitment Ltd         ,"£3,945.18"
Companies House,CH,28/07/2021,Contract Staff         ,Procurement                   ,Hays Specialist Recruitment Ltd         ,"£3,945.18"
Companies House,CH,29/07/2021,Contract Staff         ,Projects              ,Hays Specialist Recruitment Ltd         ,"£2,824.38"
Companies House,CH,29/07/2021,Contract Staff         ,Projects              ,Hays Specialist Recruitment Ltd         ,"£2,824.38"
Companies House,CH,29/07/2021,Contract Staff         ,Projects              ,Hays Specialist Recruitment Ltd         ,"£3,271.86"
Companies House,CH,09/07/2021,Contract Staff         ,"Strategy, Policy & Communications      ",Hays Specialist Recruitment Ltd         ,£846.00
Companies House,CH,07/07/2021,Contract Staff         ,"Strategy, Policy & Communications      ",Hays Specialist Recruitment Ltd         ,£924.90
Companies House,CH,09/07/2021,Contract Staff         ,"Strategy, Policy & Communications      ",Hays Specialist Recruitment Ltd         ,"£1,052.30"
Companies House,CH,07/07/2021,Contract Staff         ,"Strategy, Policy & Communications      ",Hays Specialist Recruitment Ltd         ,"£1,297.84"
Companies House,CH,21/07/2021,Contract Staff         ,"Strategy, Policy & Communications      ",Hays Specialist Recruitment Ltd         ,"£1,297.84"
Companies House,CH,15/07/2021,Contract Staff         ,"Strategy, Policy & Communications      ",Hays Specialist Recruitment Ltd         ,"£1,368.88"
Companies House,CH,21/07/2021,Contract Staff         ,"Strategy, Policy & Communications      ",Hays Specialist Recruitment Ltd         ,"£1,368.88"
Companies House,CH,23/07/2021,Contract Staff         ,"Strategy, Policy & Communications      ",Hays Specialist Recruitment Ltd         ,"£1,438.14"
Companies House,CH,07/07/2021,Contract Staff         ,WebOps & DevOps               ,ALEXANDER MANN SOLUTIONS                ,"£2,930.88"
Companies House,CH,15/07/2021,Contract Staff         ,WebOps & DevOps               ,ALEXANDER MANN SOLUTIONS                ,"£2,930.88"
Companies House,CH,28/07/2021,Contract Staff         ,WebOps & DevOps               ,ALEXANDER MANN SOLUTIONS                ,"£3,077.42"
Companies House,CH,07/07/2021,Independent adjudication – details withheld,Late Filing Penalties         ,Independent adjudication – details withheld,£913.12
Companies House,CH,29/07/2021,External Managed Services,Portfolio                     ,AMIDO LTD                               ,"£115,000.00"
Companies House,CH,28/07/2021,CHD Invoice Printing          ,Accounting                    ,PARAGON CUSTOMER COMMUNICATIONS (LONDON),£572.83
Companies House,CH,21/07/2021,Circuit Rental                ,Infrastructure                ,HIGHSPEED OFFICE LTD                    ,"£7,363.65"
Companies House,CH,28/07/2021,Cloud Services                ,Infrastructure Engineering    ,Amazon Web Services                     ,"-£22,280.04"
Companies House,CH,28/07/2021,Cloud Services                ,Infrastructure Engineering    ,Amazon Web Services                     ,"-£2,237.36"
Companies House,CH,28/07/2021,Cloud Services                ,Infrastructure Engineering    ,Amazon Web Services                     ,"£3,262.59"
Companies House,CH,23/07/2021,Cloud Services                ,Infrastructure Engineering    ,Amazon Web Services                     ,"£12,429.75"
Companies House,CH,23/07/2021,Cloud Services                ,Infrastructure Engineering    ,Amazon Web Services                     ,"£123,778.08"
Companies House,CH,28/07/2021,Legal Disbursements,Late Filing Penalties Accounting                ,INDESSER                                ,"£61,495.87"
Companies House,CH,29/07/2021,Legal Disbursements,Late Filing Penalties Accounting                ,INDESSER                                ,"£81,752.11"
Companies House,CH,29/07/2021,Legal Disbursements,Late Filing Penalties Edinburgh                 ,INDESSER                                ,"£2,473.77"
Companies House,CH,28/07/2021,Legal Disbursements,Late Filing Penalties Edinburgh                 ,INDESSER                                ,"£9,809.67"
Companies House,CH,28/07/2021,Legal Disbursements,Late Filing Penalties Northern Ireland          ,INDESSER                                ,"£4,587.88"
Companies House,CH,15/07/2021,Consultants Computer          ,Accounting                    ,Advanced Business Solutions             ,"£1,275.00"
Companies House,CH,23/07/2021,Contact Centre                ,CDD Cardiff                   ,Serco Limited                           ,"£173,462.98"
Companies House,CH,15/07/2021,Postage,CDD Cardiff                   ,APOLLO DISTRIBUTION SOLUTIONS LTD       ,"£2,136.00"
Companies House,CH,23/07/2021,Digital Communications        ,"Strategy, Policy & Communications      ",SOCIAL SIGN IN                          ,"£14,500.00"
Companies House,CH,23/07/2021,Diversity & Inclusion         ,HR Service delivery           ,PURPLESPACE LIMITED                     ,£850.00
Companies House,CH,15/07/2021,Electricity                   ,Building Services             ,EDF ENERGY CUSTOMERS PLC                ,"£44,752.78"
Companies House,CH,15/07/2021,Electricity                   ,Edinburgh                     ,EDF ENERGY CUSTOMERS PLC                ,£779.42
Companies House,CH,15/07/2021,Electricity                   ,Northern Ireland              ,Power NI                                ,"£1,822.25"
Companies House,CH,05/07/2021,Environmental costs           ,Building Services             ,SANTIA ASBESTOS MANAGEMENT LTD          ,"£8,252.80"
Companies House,CH,28/07/2021,EST Additions This Year       ,Covid 19 Activity             ,COMBINED OFFICE INTERIORS LTD           ,"£2,741.00"
Companies House,CH,15/07/2021,EST Additions This Year       ,Covid 19 Activity             ,COMBINED OFFICE INTERIORS LTD           ,"£2,902.00"
Companies House,CH,29/07/2021,External managed services     ,Architecture & Design         ,FDM GROUP                               ,"£55,044.00"
Companies House,CH,29/07/2021,External managed services     ,Architecture & Design         ,FDM GROUP                               ,"£67,380.00"
Companies House,CH,29/07/2021,External managed services     ,Architecture & Design         ,FDM GROUP                               ,"£69,414.00"
Companies House,CH,29/07/2021,External managed services     ,Architecture & Design         ,FDM GROUP                               ,"£78,870.00"
Companies House,CH,29/07/2021,External managed services     ,DDaT Projects                 ,KAINOS SOFTWARE LTD                     ,"£107,383.83"
Companies House,CH,29/07/2021,Government Legal              ,Legal Services                ,GOVERNMENT LEGAL DEPARTMENT             ,£951.60
Companies House,CH,28/07/2021,Government Legal              ,Legal Services                ,GOVERNMENT LEGAL DEPARTMENT             ,"£2,589.48"
Companies House,CH,23/07/2021,Hardware & Software Maintenance ,Accounting                    ,Trade Scanners (E File UK LTD)          ,£847.00
Companies House,CH,28/07/2021,Hardware & Software Maintenance ,HR Strategy & Policy          ,MHR                                     ,"£2,439.84"
Companies House,CH,09/07/2021,Hardware & Software Maintenance ,Infrastructure                ,Konica Minolta Business Solutions,"£2,302.07"
Companies House,CH,09/07/2021,Hardware & Software Maintenance ,Infrastructure                ,Computacenter (GCAT)                    ,"£100,949.53"
Companies House,CH,23/07/2021,Hardware & Software Maintenance ,Infrastructure                ,Oracle                                  ,"£122,184.32"
Companies House,CH,19/07/2021,Hardware & Software Maintenance ,Infrastructure Engineering    ,Probrand Ltd                            ,"£5,062.04"
Companies House,CH,19/07/2021,Hardware & Software Maintenance ,WebOps & DevOps               ,Probrand Ltd                            ,"£27,902.89"
Companies House,CH,28/07/2021,Legal Disbursements           ,Late Filing Penalties Accounting                ,INDESSER                                ,"£392,841.00"
Companies House,CH,29/07/2021,Legal Disbursements           ,Late Filing Penalties Accounting                ,INDESSER                                ,"£459,570.00"
Companies House,CH,07/07/2021,Legal Disbursements           ,Late Filing Penalties Edinburgh                 ,ALSTON LAW LTD                          ,£979.70
Companies House,CH,05/07/2021,Legal Disbursements           ,Late Filing Penalties Northern Ireland          ,WILSON NESBITT SOLICITORS               ,"£1,150.00"
Companies House,CH,05/07/2021,Legal Expenses General        ,Late Filing Penalties Northern Ireland          ,WILSON NESBITT SOLICITORS               ,"£3,171.00"
Companies House,CH,15/07/2021,Mobile Phones                 ,Infrastructure                ,TELEFONICA UK LTD                       ,"£3,277.42"
Companies House,CH,19/07/2021,Occupational Health Contract  ,Building Services             ,PEOPLE ASSET MANAGEMENT GROUP LTD       ,"£1,900.00"
Companies House,CH,09/07/2021,Print and Mailing Contract    ,CDD Cardiff                   ,APS GROUP                               ,"£1,354.82"
Companies House,CH,09/07/2021,Print and Mailing Contract    ,CDD Cardiff                   ,APS GROUP                               ,"£2,671.95"
Companies House,CH,09/07/2021,Print and Mailing Contract    ,CDD Cardiff                   ,APS GROUP                               ,"£31,201.09"
Companies House,CH,09/07/2021,Print and Mailing Contract    ,CDD Cardiff                   ,APS GROUP                               ,"£38,847.01"
Companies House,CH,05/07/2021,Print and Mailing Contract    ,CDD Cardiff                   ,APS GROUP                               ,"£42,725.70"
Companies House,CH,29/07/2021,Print and Mailing Contract    ,CDD Cardiff                   ,APS GROUP                               ,"£47,838.48"
Companies House,CH,21/07/2021,Print and Mailing Contract    ,CDD Cardiff                   ,APS GROUP                               ,"£51,615.35"
Companies House,CH,21/07/2021,Print and Mailing Contract    ,CDD Cardiff                   ,APS GROUP                               ,"£66,578.01"
Companies House,CH,15/07/2021,Print and Mailing Contract    ,Late Filing Penalties         ,A McLay & Company Ltd                   ,"£6,286.50"
Companies House,CH,15/07/2021,Print and Mailing Contract    ,Late Filing Penalties         ,A McLay & Company Ltd                   ,"£9,814.06"
Companies House,CH,15/07/2021,Print and Mailing Contract    ,Late Filing Penalties         ,A McLay & Company Ltd                   ,"£10,126.22"
Companies House,CH,15/07/2021,Print and Mailing Contract    ,Late Filing Penalties         ,A McLay & Company Ltd                   ,"£10,144.08"
Companies House,CH,15/07/2021,Print and Mailing Contract    ,Late Filing Penalties         ,A McLay & Company Ltd                   ,"£11,444.34"
Companies House,CH,21/07/2021,Professional Fees             ,Architecture & Design         ,FINANCIAL REPORTING COUNCIL LTD         ,"£70,220.88"
Companies House,CH,23/07/2021,Professional Fees             ,Infrastructure                ,Risual Limited                          ,£850.00
Companies House,CH,29/07/2021,Professional Fees             ,Infrastructure                ,Risual Limited                          ,£850.00
Companies House,CH,07/07/2021,Professional Fees             ,Infrastructure Engineering    ,EDM Group Ltd                           ,£910.00
Companies House,CH,19/07/2021,Recruitment Expenses          ,HR Service delivery           ,Haymarket Media Group Ltd               ,£925.00
Companies House,CH,07/07/2021,Recruitment Expenses          ,HR Service delivery           ,Indeed Ireland Operations Ltd           ,"£2,000.00"
Companies House,CH,07/07/2021,Recruitment Expenses          ,HR Service delivery           ,Indeed Ireland Operations Ltd           ,"£2,178.00"
Companies House,CH,07/07/2021,Rent                          ,London Information Centre     ,Jon Christopher Chartered Surveyors     ,"£19,541.25"
Companies House,CH,15/07/2021,Restaurant Services           ,Building Services             ,ARAMARK                                 ,"£15,003.75"
Companies House,CH,05/07/2021,Rolling Maintenance & minor contracts,Building Services             ,TREECARE CONSULTING LTD                 ,£660.00
Companies House,CH,05/07/2021,Rolling Maintenance & minor contracts,Building Services             ,CENTRAL ROOFING & BUILDING SERVICES LTD ,"£1,319.00"
Companies House,CH,07/07/2021,Rolling Maintenance & minor contracts,Building Services             ,SANTIA ASBESTOS MANAGEMENT LTD          ,"£3,037.50"
Companies House,CH,23/07/2021,Rolling Maintenance & minor contracts,Building Services             ,SUREMARK (FACILITIES) LTD               ,"£25,790.33"
Companies House,CH,07/07/2021,Postage,CDD Cardiff                   ,Royal Mail                              ,"£2,768.57"
Companies House,CH,23/07/2021,Postage,CDD Cardiff                   ,Royal Mail                              ,"£2,987.09"
Companies House,CH,07/07/2021,Postage,CDD Cardiff                   ,Royal Mail                              ,"£3,893.78"
Companies House,CH,15/07/2021,Postage,CDD Cardiff                   ,Royal Mail                              ,"£4,328.43"
Companies House,CH,05/07/2021,Security                      ,Accounting                    ,Loomis Uk Ltd                           ,£649.45
Companies House,CH,26/07/2021,Security                      ,Accounting                    ,Loomis Uk Ltd                           ,£688.42
Companies House,CH,05/07/2021,Security clearances           ,Building Services             ,HMRC Accounts Receivable                ,"£1,604.17"
Companies House,CH,07/07/2021,Service charges               ,London Information Centre     ,Jon Christopher Chartered Surveyors     ,"£5,927.89"
Companies House,CH,15/07/2021,Software as a service         ,Cyber Security                ,E2E ASSURE                              ,"£19,935.00"
Companies House,CH,21/07/2021,Software as a service         ,Infrastructure                ,AVOIRA LTD                              ,"£2,450.00"
Companies House,CH,19/07/2021,Stationery & Consumables      ,Procurement                   ,Complete Business Solutions             ,£909.60
Companies House,CH,09/07/2021,Stationery & Consumables      ,Procurement                   ,BLAKE ENVELOPES                         ,"£2,272.00"
Companies House,CH,15/07/2021,Subscriptions                 ,Training                      ,CIPD ENTERPRISES                        ,"£3,956.25"
Companies House,CH,15/07/2021,Subscriptions                 ,Training                      ,The Whitehall & Industry Group (Wig)    ,"£5,350.00"
Companies House,CH,21/07/2021,Telecom Rental                ,Infrastructure                ,British Telecom PLC                     ,"£1,547.45"
Companies House,CH,23/07/2021,Training Digital              ,Training                      ,CSL-KPMG LLP                            ,"£1,397.00"
Companies House,CH,23/07/2021,Training Digital              ,Training                      ,CSL-KPMG LLP                            ,"£1,397.00"
Companies House,CH,23/07/2021,Training Digital              ,Training                      ,CSL-KPMG LLP                            ,"£1,397.00"
Companies House,CH,07/07/2021,Training External             ,Portfolio                     ,BITESIZE COMPUTER TRAINING LTD          ,£500.00
Companies House,CH,21/07/2021,Training External             ,Portfolio                     ,BITESIZE COMPUTER TRAINING LTD          ,"£1,000.00"
Companies House,CH,09/07/2021,Water                         ,Building Services             ,Dwr Cymru Welsh Water                   ,"£1,099.50"
Companies House,CH,09/07/2021,RATES                        ,Building Services            ,City and County of Cardiff             ,"£63,308.00"
Companies House,CH,09/07/2021,RATES                        ,London         ,The City of Westminster,"£1,934.00"
Companies House,CH,09/07/2021,RATES                        ,London  ,The City of Westminster,"£2,944.00"
